[Event "*** Titled Tuesday 3|2 Blitz"]
[Site "Chess.com"]
[Date "2016.05.03"]
[Round "3"]
[White "pKiLz5Rn9b"]
[Black "SabinaFoisor"]
[Result "1-0"]
[WhiteElo "2416"]
[BlackElo "2180"]
[TimeControl "180+2"]
[EndTime "17:36:38 PDT"]
[Termination "pKiLz5Rn9b won by resignation"]

1. e4 {[%clk 0:03:01.9]} 1... e5 {[%clk 0:02:59.9]} 2. Nf3 {[%clk 0:02:58.3]}
2... Nc6 {[%clk 0:03:00.6]} 3. Bc4 {[%clk 0:02:58.9]} 3... Bc5 {[%clk
0:02:57.7]} 4. c3 {[%clk 0:02:59.9]} 4... Nf6 {[%clk 0:02:54.9]} 5. d3 {[%clk
0:03:01.2]} 5... O-O {[%clk 0:02:54.3]} 6. O-O {[%clk 0:03:01.9]} 6... a6 {[%clk
0:02:55]} 7. h3 {[%clk 0:03:01.6]} 7... h6 {[%clk 0:02:54.6]} 8. Nbd2 {[%clk
0:03:01.8]} 8... Re8 {[%clk 0:02:52.6]} 9. Re1 {[%clk 0:03:02.3]} 9... Bf8
{[%clk 0:02:49.6]} 10. Bb3 {[%clk 0:03:01.1]} 10... d6 {[%clk 0:02:45.7]} 11.
Nf1 {[%clk 0:03:02]} 11... Be6 {[%clk 0:02:43.1]} 12. Ng3 {[%clk 0:03:03.1]}
12... Bxb3 {[%clk 0:02:42.4]} 13. axb3 {[%clk 0:03:04]} 13... g6 {[%clk
0:02:40.8]} 14. Be3 {[%clk 0:03:03.9]} 14... Bg7 {[%clk 0:02:41.8]} 15. Nh2
{[%clk 0:03:01.6]} 15... d5 {[%clk 0:02:41.1]} 16. Qf3 {[%clk 0:02:57.8]} 16...
d4 {[%clk 0:02:35.3]} 17. Bd2 {[%clk 0:02:58.5]} 17... Qd6 {[%clk 0:02:29.3]}
18. Rad1 {[%clk 0:02:39.5]} 18... Na5 {[%clk 0:02:21.8]} 19. cxd4 {[%clk
0:02:37.1]} 19... Nxb3 {[%clk 0:02:22.2]} 20. dxe5 {[%clk 0:02:38.1]} 20... Nxd2
{[%clk 0:01:59.7]} 21. Rxd2 {[%clk 0:02:38.2]} 21... Qxe5 {[%clk 0:01:56.6]} 22.
d4 {[%clk 0:02:38.7]} 22... Qa5 {[%clk 0:01:57]} 23. Rde2 {[%clk 0:02:38.1]}
23... Rad8 {[%clk 0:01:56.2]} 24. e5 {[%clk 0:02:26.7]} 24... Nd5 {[%clk
0:01:45.3]} 25. e6 {[%clk 0:02:27.5]} 25... fxe6 {[%clk 0:01:41.8]} 26. Qg4
{[%clk 0:02:26.9]} 26... Nf6 {[%clk 0:01:01.8]} 27. Qxg6 {[%clk 0:02:26.6]}
27... Qg5 {[%clk 0:01:02.1]} 28. Qc2 {[%clk 0:02:23.2]} 28... c6 {[%clk
0:00:56.3]} 29. Nf3 {[%clk 0:02:21.4]} 29... Qd5 {[%clk 0:00:53.3]} 30. Re5
{[%clk 0:02:21.9]} 30... Qd6 {[%clk 0:00:49.3]} 31. Ne4 {[%clk 0:02:19]} 31...
Nxe4 {[%clk 0:00:49.3]} 32. R5xe4 {[%clk 0:02:20.9]} 32... Rd7 {[%clk
0:00:26.3]} 33. Rg4 {[%clk 0:02:21.1]} 33... Qf8 {[%clk 0:00:18.7]} 34. Qg6
{[%clk 0:02:19.2]} 34... Kh8 {[%clk 0:00:18.9]} 35. Nh4 {[%clk 0:02:13]} 35...
Qf7 {[%clk 0:00:19.3]} 36. Qd3 {[%clk 0:02:06.5]} 36... Rf8 {[%clk 0:00:19.9]}
37. Ng6+ {[%clk 0:02:07.4]} 37... Kg8 {[%clk 0:00:17.7]} 38. Nxf8 {[%clk
0:02:08.7]} 38... Qxf8 {[%clk 0:00:19]} 39. Rxe6 {[%clk 0:02:09]} 39... Rf7
{[%clk 0:00:16.6]} 40. Reg6 {[%clk 0:02:09.3]} 40... Qe7 {[%clk 0:00:15]} 41.
Qe3 {[%clk 0:02:08.3]} 41... Qd7 {[%clk 0:00:08.2]} 42. Qxh6 {[%clk 0:02:08.3]}
42... Kf8 {[%clk 0:00:09.1]} 43. Rxg7 {[%clk 0:02:07.2]} 43... Rxg7 {[%clk
0:00:11]} 44. Qh8+ {[%clk 0:02:08.2]} 1-0

[Event "*** Titled Tuesday 3|2 Blitz"]
[Site "Chess.com"]
[Date "2016.05.03"]
[Round "3"]
[White "viktorskliarov"]
[Black "andretta"]
[Result "1-0"]
[WhiteElo "2455"]
[BlackElo "2176"]
[TimeControl "180+2"]
[EndTime "17:36:38 PDT"]
[Termination "viktorskliarov won by resignation"]

1. e4 {[%clk 0:03:01.9]} 1... e6 {[%clk 0:03:00.7]} 2. d4 {[%clk 0:03:02.7]}
2... d5 {[%clk 0:03:02.2]} 3. e5 {[%clk 0:03:04.1]} 3... c5 {[%clk 0:03:02.8]}
4. c3 {[%clk 0:03:05.7]} 4... Nc6 {[%clk 0:03:03.9]} 5. Nf3 {[%clk 0:03:07.1]}
5... Bd7 {[%clk 0:03:05.3]} 6. a3 {[%clk 0:03:07.5]} 6... c4 {[%clk 0:03:06.3]}
7. Nbd2 {[%clk 0:03:07.8]} 7... Na5 {[%clk 0:03:06.7]} 8. g3 {[%clk 0:03:08.8]}
8... Bc6 {[%clk 0:03:03]} 9. h4 {[%clk 0:03:09.2]} 9... Qd7 {[%clk 0:03:00.8]}
10. h5 {[%clk 0:03:08.9]} 10... h6 {[%clk 0:03:01]} 11. Bh3 {[%clk 0:03:09.6]}
11... Ba4 {[%clk 0:03:01.6]} 12. Qe2 {[%clk 0:03:07.9]} 12... O-O-O {[%clk
0:03:00.9]} 13. O-O {[%clk 0:03:07.5]} 13... Kb8 {[%clk 0:02:57.5]} 14. Nh4
{[%clk 0:03:05.4]} 14... Ne7 {[%clk 0:02:24.4]} 15. f4 {[%clk 0:03:02.8]} 15...
g6 {[%clk 0:02:25.8]} 16. hxg6 {[%clk 0:02:55.6]} 16... fxg6 {[%clk 0:02:24.5]}
17. Qg4 {[%clk 0:02:41.6]} 17... g5 {[%clk 0:02:14.8]} 18. fxg5 {[%clk
0:02:31.6]} 18... hxg5 {[%clk 0:02:16.7]} 19. Ng2 {[%clk 0:02:24.7]} 19... Nf5
{[%clk 0:01:57.8]} 20. Nf3 {[%clk 0:01:59.8]} 20... Be7 {[%clk 0:01:40.6]} 21.
Bxg5 {[%clk 0:01:51.8]} 21... Rdg8 {[%clk 0:01:29.4]} 22. Ngh4 {[%clk
0:01:50.9]} 22... Ne3 {[%clk 0:01:07.8]} 23. Qxe6 {[%clk 0:01:32.5]} 23... Qxe6
{[%clk 0:01:02.2]} 24. Bxe6 {[%clk 0:01:32.8]} 24... Rxg5 {[%clk 0:01:03.8]} 25.
Nxg5 {[%clk 0:01:30.3]} 25... Bxg5 {[%clk 0:01:05.7]} 26. Rf7 {[%clk 0:01:28.7]}
26... Bxh4 {[%clk 0:00:34.4]} 27. gxh4 {[%clk 0:01:28.7]} 27... Rxh4 {[%clk
0:00:36.3]} 28. Re1 {[%clk 0:01:26]} 28... Nc2 {[%clk 0:00:09.5]} 29. Re2 {[%clk
0:01:26.6]} 29... Na1 {[%clk 0:00:09.7]} 30. Bxd5 {[%clk 0:01:25.6]} 30... Rg4+
{[%clk 0:00:08.9]} 31. Rg2 {[%clk 0:01:25.3]} 31... Rxg2+ {[%clk 0:00:09.3]} 32.
Kxg2 {[%clk 0:01:26.5]} 32... Bc6 {[%clk 0:00:11.2]} 33. Bxc6 {[%clk 0:01:26.6]}
33... Nxc6 {[%clk 0:00:11.7]} 34. e6 {[%clk 0:01:26.9]} 34... Nb3 {[%clk
0:00:09.1]} 1-0

[Event "*** Titled Tuesday 3|2 Blitz"]
[Site "Chess.com"]
[Date "2016.05.03"]
[Round "3"]
[White "Lying-Ted"]
[Black "brauliocuarta"]
[Result "1-0"]
[WhiteElo "2249"]
[BlackElo "2114"]
[TimeControl "180+2"]
[EndTime "17:36:57 PDT"]
[Termination "Lying-Ted won by resignation"]

1. d4 {[%clk 0:03:01.9]} 1... Nf6 {[%clk 0:02:44.3]} 2. Bf4 {[%clk 0:03:02.4]}
2... g6 {[%clk 0:02:44]} 3. e3 {[%clk 0:03:03]} 3... Bg7 {[%clk 0:02:44.3]} 4.
Nf3 {[%clk 0:03:03.8]} 4... O-O {[%clk 0:02:44.9]} 5. h3 {[%clk 0:03:05]} 5...
d6 {[%clk 0:02:46.1]} 6. Be2 {[%clk 0:03:06.4]} 6... Nfd7 {[%clk 0:02:42.7]} 7.
O-O {[%clk 0:03:07]} 7... e5 {[%clk 0:02:38.5]} 8. Bh2 {[%clk 0:03:08.2]} 8...
f5 {[%clk 0:02:34.4]} 9. c3 {[%clk 0:03:09.1]} 9... h6 {[%clk 0:02:32]} 10. a4
{[%clk 0:03:08.8]} 10... Nc6 {[%clk 0:02:32.2]} 11. a5 {[%clk 0:03:09.8]} 11...
g5 {[%clk 0:02:28.3]} 12. a6 {[%clk 0:03:10.5]} 12... Kh8 {[%clk 0:02:24.5]} 13.
b4 {[%clk 0:03:08]} 13... Ne7 {[%clk 0:02:19]} 14. axb7 {[%clk 0:03:07.8]} 14...
Bxb7 {[%clk 0:02:19.4]} 15. Na3 {[%clk 0:03:04.4]} 15... e4 {[%clk 0:02:18.5]}
16. Nd2 {[%clk 0:03:03.8]} 16... Ng6 {[%clk 0:02:17.2]} 17. Nac4 {[%clk
0:03:00.8]} 17... Qf6 {[%clk 0:02:06.4]} 18. Na5 {[%clk 0:03:00.4]} 18... Bd5
{[%clk 0:02:05.4]} 19. c4 {[%clk 0:03:00.2]} 19... Bg8 {[%clk 0:01:59.3]} 20. c5
{[%clk 0:03:01.2]} 20... d5 {[%clk 0:01:58]} 21. Qa4 {[%clk 0:02:58.3]} 21...
Qf7 {[%clk 0:01:36.9]} 22. Bxc7 {[%clk 0:02:51.8]} 22... f4 {[%clk 0:01:37]} 23.
Bg4 {[%clk 0:02:50.9]} 23... Nxc5 {[%clk 0:01:26.5]} 24. bxc5 {[%clk 0:02:44.5]}
24... Qxc7 {[%clk 0:01:27.9]} 25. Qc6 {[%clk 0:02:41.4]} 25... Qf7 {[%clk
0:01:24.4]} 26. Bh5 {[%clk 0:02:39.5]} 26... Bh7 {[%clk 0:01:20.9]} 27. Nb7
{[%clk 0:02:37.7]} 27... f3 {[%clk 0:01:18.9]} 28. Nd6 {[%clk 0:02:36.5]} 28...
Qf6 {[%clk 0:01:18.4]} 29. gxf3 {[%clk 0:02:23.2]} 29... exf3 {[%clk 0:01:15]}
30. Qxd5 {[%clk 0:02:19.4]} 30... Nh4 {[%clk 0:01:14]} 31. N2e4 {[%clk
0:02:16.8]} 31... Qe7 {[%clk 0:01:08.7]} 32. Bg4 {[%clk 0:01:56.3]} 32... Bg6
{[%clk 0:01:05.8]} 33. Qe6 {[%clk 0:01:55.6]} 33... Qc7 {[%clk 0:00:51.7]} 34.
Rfb1 {[%clk 0:01:44.3]} 34... Rab8 {[%clk 0:00:50.1]} 35. Qd7 {[%clk 0:01:20.7]}
35... Qxd7 {[%clk 0:00:40.4]} 36. Bxd7 {[%clk 0:01:22.6]} 36... Rxb1+ {[%clk
0:00:42]} 37. Rxb1 {[%clk 0:01:21.6]} 37... a5 {[%clk 0:00:39.7]} 38. c6 {[%clk
0:01:22.7]} 38... Bf5 {[%clk 0:00:37.2]} 39. Nxf5 {[%clk 0:01:20.6]} 39... Nxf5
{[%clk 0:00:39.1]} 40. Bxf5 {[%clk 0:01:20.9]} 40... Rxf5 {[%clk 0:00:39.7]} 41.
c7 {[%clk 0:01:22.3]} 41... Rf8 {[%clk 0:00:38.3]} 42. Rb8 {[%clk 0:01:23.1]}
1-0

[Event "*** Titled Tuesday 3|2 Blitz"]
[Site "Chess.com"]
[Date "2016.05.03"]
[Round "3"]
[White "AkshatChandra"]
[Black "jcibarra"]
[Result "0-1"]
[WhiteElo "2681"]
[BlackElo "2581"]
[TimeControl "180+2"]
[EndTime "17:37:19 PDT"]
[Termination "jcibarra won by checkmate"]

1. e4 {[%clk 0:03:01.9]} 1... c5 {[%clk 0:03:00]} 2. Nf3 {[%clk 0:03:02.7]} 2...
e6 {[%clk 0:03:01.5]} 3. d4 {[%clk 0:03:03.8]} 3... cxd4 {[%clk 0:03:03.4]} 4.
Nxd4 {[%clk 0:03:05.7]} 4... a6 {[%clk 0:03:05]} 5. Bd3 {[%clk 0:03:00.9]} 5...
Nf6 {[%clk 0:03:04.2]} 6. O-O {[%clk 0:03:01.4]} 6... e5 {[%clk 0:03:05.2]} 7.
Bg5 {[%clk 0:02:58.7]} 7... d6 {[%clk 0:03:03.2]} 8. Nf5 {[%clk 0:02:51.6]} 8...
Be6 {[%clk 0:03:03.9]} 9. c4 {[%clk 0:02:39.6]} 9... Nbd7 {[%clk 0:03:02.7]} 10.
Nc3 {[%clk 0:02:37.7]} 10... h6 {[%clk 0:03:03.1]} 11. Be3 {[%clk 0:02:34.6]}
11... g6 {[%clk 0:03:01.8]} 12. h3 {[%clk 0:02:13.1]} 12... Rc8 {[%clk
0:02:56.9]} 13. Qe2 {[%clk 0:01:53.6]} 13... Nxe4 {[%clk 0:02:29]} 14. Bxe4
{[%clk 0:01:44]} 14... gxf5 {[%clk 0:02:27.6]} 15. Bxb7 {[%clk 0:01:42.8]} 15...
Rb8 {[%clk 0:02:15.8]} 16. Bxa6 {[%clk 0:01:39.9]} 16... f4 {[%clk 0:02:13.2]}
17. Bc1 {[%clk 0:01:35.3]} 17... Rg8 {[%clk 0:02:11.6]} 18. Qh5 {[%clk
0:01:16.6]} 18... Qb6 {[%clk 0:01:57.8]} 19. Bb5 {[%clk 0:01:08]} 19... Qb7
{[%clk 0:01:59.2]} 20. f3 {[%clk 0:00:53.2]} 20... Rg5 {[%clk 0:01:54.2]} 21.
Qh4 {[%clk 0:00:52.5]} 21... Rg6 {[%clk 0:01:42]} 22. Kh1 {[%clk 0:00:49.6]}
22... Be7 {[%clk 0:01:40.3]} 23. Qf2 {[%clk 0:00:49.3]} 23... Kf8 {[%clk
0:01:38.4]} 24. a4 {[%clk 0:00:47.7]} 24... Nf6 {[%clk 0:01:36.8]} 25. a5 {[%clk
0:00:47.5]} 25... Nh5 {[%clk 0:01:33.6]} 26. a6 {[%clk 0:00:48.9]} 26... Qc8
{[%clk 0:01:32.2]} 27. a7 {[%clk 0:00:48.9]} 27... Ra8 {[%clk 0:01:31.6]} 28.
Kh2 {[%clk 0:00:25.3]} 28... Bxc4 {[%clk 0:01:22.4]} 29. Bxc4 {[%clk 0:00:22.5]}
29... Qxc4 {[%clk 0:01:22.4]} 30. Rd1 {[%clk 0:00:19.4]} 30... Bd8 {[%clk
0:01:20.6]} 31. Ra4 {[%clk 0:00:13.3]} 31... Qc6 {[%clk 0:01:17.9]} 32. Qe2
{[%clk 0:00:09.1]} 32... Bb6 {[%clk 0:01:14.5]} 33. Qb5 {[%clk 0:00:08.3]} 33...
Qc7 {[%clk 0:01:10.8]} 34. Nd5 {[%clk 0:00:05.6]} 34... Qc2 {[%clk 0:01:04.1]}
35. Rd2 {[%clk 0:00:03.2]} 35... Qxc1 {[%clk 0:01:02.8]} 36. Re2 {[%clk
0:00:03]} 36... Qg1# {[%clk 0:01:02]} 0-1

[Event "*** Titled Tuesday 3|2 Blitz"]
[Site "Chess.com"]
[Date "2016.05.03"]
[Round "3"]
[White "yarosavich"]
[Black "exoticprincess"]
[Result "0-1"]
[WhiteElo "2538"]
[BlackElo "2857"]
[TimeControl "180+2"]
[EndTime "17:37:35 PDT"]
[Termination "exoticprincess won by checkmate"]

1. d4 {[%clk 0:03:01.9]} 1... Nf6 {[%clk 0:03:00.8]} 2. c4 {[%clk 0:03:02.7]}
2... g6 {[%clk 0:03:02.1]} 3. Nf3 {[%clk 0:03:03]} 3... Bg7 {[%clk 0:03:03.1]}
4. Nc3 {[%clk 0:03:04.3]} 4... O-O {[%clk 0:03:02.2]} 5. e4 {[%clk 0:03:00.7]}
5... c6 {[%clk 0:03:03.3]} 6. Be2 {[%clk 0:03:00.2]} 6... d5 {[%clk 0:03:04.1]}
7. e5 {[%clk 0:03:00.2]} 7... Ne8 {[%clk 0:03:04.6]} 8. O-O {[%clk 0:03:00.2]}
8... Nc7 {[%clk 0:03:04.3]} 9. Be3 {[%clk 0:02:58.3]} 9... dxc4 {[%clk 0:03:02]}
10. Bxc4 {[%clk 0:02:58.9]} 10... Nd7 {[%clk 0:03:02.7]} 11. Re1 {[%clk
0:02:37.8]} 11... Nb6 {[%clk 0:03:03.4]} 12. Bb3 {[%clk 0:02:33.1]} 12... h6
{[%clk 0:03:01.5]} 13. h3 {[%clk 0:02:33.8]} 13... Kh7 {[%clk 0:03:01.6]} 14.
Bc2 {[%clk 0:02:32.6]} 14... Nbd5 {[%clk 0:03:01.3]} 15. Ne4 {[%clk 0:02:29.6]}
15... Nb4 {[%clk 0:02:57]} 16. Bb1 {[%clk 0:02:25.4]} 16... Nbd5 {[%clk
0:02:57.5]} 17. Bc2 {[%clk 0:02:24.6]} 17... Nxe3 {[%clk 0:02:58.3]} 18. fxe3
{[%clk 0:02:24.9]} 18... f5 {[%clk 0:02:52.9]} 19. Nc5 {[%clk 0:02:14.8]} 19...
b6 {[%clk 0:02:53.4]} 20. Nd3 {[%clk 0:02:13.5]} 20... Nd5 {[%clk 0:02:51.6]}
21. Rc1 {[%clk 0:02:11.2]} 21... Bb7 {[%clk 0:02:46.7]} 22. Bb3 {[%clk
0:02:05.1]} 22... Rc8 {[%clk 0:02:39.5]} 23. Nf4 {[%clk 0:01:45.2]} 23... Qd7
{[%clk 0:02:31.7]} 24. Qd2 {[%clk 0:01:36.7]} 24... e6 {[%clk 0:02:31.7]} 25.
Qf2 {[%clk 0:01:24.9]} 25... Qf7 {[%clk 0:02:20.3]} 26. a3 {[%clk 0:01:04.1]}
26... g5 {[%clk 0:02:16]} 27. Nxd5 {[%clk 0:01:04.3]} 27... cxd5 {[%clk
0:02:10.9]} 28. Rxc8 {[%clk 0:00:49.7]} 28... Rxc8 {[%clk 0:02:09.5]} 29. g4
{[%clk 0:00:51.3]} 29... Kg8 {[%clk 0:02:03.2]} 30. Bc2 {[%clk 0:00:35]} 30...
fxg4 {[%clk 0:01:56.8]} 31. Bh7+ {[%clk 0:00:26.7]} 31... Kh8 {[%clk 0:01:54.6]}
32. hxg4 {[%clk 0:00:27.9]} 32... Rf8 {[%clk 0:01:55.3]} 33. Rf1 {[%clk
0:00:23.3]} 33... Ba6 {[%clk 0:01:56.3]} 34. Bb1 {[%clk 0:00:07.8]} 34... Bxf1
{[%clk 0:01:51.2]} 35. Qc2 {[%clk 0:00:09]} 35... Qg8 {[%clk 0:01:51.9]} 36.
Nxg5 {[%clk 0:00:06.7]} 36... Bxe5 {[%clk 0:01:29.4]} 37. dxe5 {[%clk
0:00:04.4]} 37... hxg5 {[%clk 0:01:29.8]} 38. Qh2+ {[%clk 0:00:04]} 38... Kg7
{[%clk 0:01:30.6]} 39. Qh5 {[%clk 0:00:05.9]} 39... Rc8 {[%clk 0:01:16.9]} 40.
Qxg5+ {[%clk 0:00:05.5]} 40... Kf7 {[%clk 0:01:14.4]} 41. Qf6+ {[%clk 0:00:06]}
41... Ke8 {[%clk 0:01:15.5]} 42. Bg6+ {[%clk 0:00:07.7]} 42... Kd7 {[%clk
0:01:16.7]} 43. Bf7 {[%clk 0:00:07]} 43... Qxg4+ {[%clk 0:01:16.7]} 44. Kxf1
{[%clk 0:00:08.7]} 44... Rc1+ {[%clk 0:01:16.9]} 45. Kf2 {[%clk 0:00:10.3]}
45... Rc2+ {[%clk 0:01:18.5]} 46. Kf1 {[%clk 0:00:10.7]} 46... Qd1# {[%clk
0:01:20.1]} 0-1

[Event "*** Titled Tuesday 3|2 Blitz"]
[Site "Chess.com"]
[Date "2016.05.03"]
[Round "3"]
[White "Dlugy"]
[Black "Elshan1985"]
[Result "1-0"]
[WhiteElo "2593"]
[BlackElo "2560"]
[TimeControl "180+2"]
[EndTime "17:37:53 PDT"]
[Termination "Dlugy won by resignation"]

1. d4 {[%clk 0:03:01.9]} 1... Nc6 {[%clk 0:03:00.5]} 2. Nf3 {[%clk 0:03:02.3]}
2... d5 {[%clk 0:03:01.2]} 3. Bf4 {[%clk 0:03:02.8]} 3... Bg4 {[%clk 0:03:02.6]}
4. e3 {[%clk 0:03:03.6]} 4... e6 {[%clk 0:03:03.6]} 5. Be2 {[%clk 0:03:04.8]}
5... Bd6 {[%clk 0:03:04.6]} 6. Bg3 {[%clk 0:03:06]} 6... Nge7 {[%clk 0:03:05.8]}
7. Nbd2 {[%clk 0:03:06.2]} 7... Nf5 {[%clk 0:03:06.7]} 8. Bxd6 {[%clk 0:03:07]}
8... Nxd6 {[%clk 0:03:07.6]} 9. h3 {[%clk 0:03:07.9]} 9... Bh5 {[%clk
0:03:06.6]} 10. O-O {[%clk 0:03:08.1]} 10... O-O {[%clk 0:03:07.4]} 11. c3
{[%clk 0:03:02.5]} 11... b5 {[%clk 0:03:05.9]} 12. a4 {[%clk 0:03:02.4]} 12...
a6 {[%clk 0:03:04.5]} 13. Nb3 {[%clk 0:02:49.2]} 13... Nc4 {[%clk 0:03:01.1]}
14. Qc1 {[%clk 0:02:47.1]} 14... e5 {[%clk 0:02:35.8]} 15. dxe5 {[%clk
0:02:41.8]} 15... N6xe5 {[%clk 0:02:26.6]} 16. Nxe5 {[%clk 0:02:38.2]} 16...
Bxe2 {[%clk 0:02:26.9]} 17. Re1 {[%clk 0:02:35]} 17... Nxe5 {[%clk 0:02:13.7]}
18. Rxe2 {[%clk 0:02:36.4]} 18... Qd6 {[%clk 0:02:15.2]} 19. e4 {[%clk
0:02:31.8]} 19... dxe4 {[%clk 0:02:10.2]} 20. Rxe4 {[%clk 0:02:32.8]} 20... c5
{[%clk 0:02:10]} 21. axb5 {[%clk 0:02:23.4]} 21... axb5 {[%clk 0:02:10.1]} 22.
Rxa8 {[%clk 0:02:16.4]} 22... Rxa8 {[%clk 0:02:10.5]} 23. Qe3 {[%clk 0:02:15.5]}
23... f6 {[%clk 0:01:51.7]} 24. f4 {[%clk 0:02:09.8]} 24... Ng6 {[%clk
0:00:55.9]} 25. Nxc5 {[%clk 0:01:48.4]} 25... h5 {[%clk 0:00:52.1]} 26. Rd4
{[%clk 0:01:38.8]} 26... Qc6 {[%clk 0:00:43.8]} 27. Qe6+ {[%clk 0:01:37.3]}
27... Qxe6 {[%clk 0:00:44.8]} 28. Nxe6 {[%clk 0:01:39.2]} 28... Ra2 {[%clk
0:00:40.1]} 29. Rd7 {[%clk 0:01:37.1]} 29... Kh8 {[%clk 0:00:35.5]} 30. g3
{[%clk 0:01:22.2]} 30... Rxb2 {[%clk 0:00:32.3]} 31. Rxg7 {[%clk 0:01:23.1]}
31... Nf8 {[%clk 0:00:33.5]} 32. Re7 {[%clk 0:01:23.5]} 32... Nxe6 {[%clk
0:00:34.5]} 33. Rxe6 {[%clk 0:01:24.6]} 33... Kg7 {[%clk 0:00:36.2]} 34. f5
{[%clk 0:01:22.4]} 34... Rb3 {[%clk 0:00:34.4]} 35. Rc6 {[%clk 0:01:08.6]} 35...
b4 {[%clk 0:00:29.5]} 36. cxb4 {[%clk 0:01:09.9]} 36... Rxg3+ {[%clk 0:00:30.4]}
37. Kh2 {[%clk 0:01:04.2]} 37... Rb3 {[%clk 0:00:30.8]} 38. Rc4 {[%clk
0:01:04.1]} 38... Kh6 {[%clk 0:00:23.1]} 39. h4 {[%clk 0:01:05]} 39... Rf3
{[%clk 0:00:24]} 40. b5 {[%clk 0:01:04.6]} 40... Rxf5 {[%clk 0:00:24.1]} 41. Rb4
{[%clk 0:01:05.5]} 41... Rd5 {[%clk 0:00:24.3]} 42. b6 {[%clk 0:01:06.7]} 42...
Rd8 {[%clk 0:00:25.9]} 43. b7 {[%clk 0:01:06.9]} 43... Rb8 {[%clk 0:00:27.5]}
44. Kg3 {[%clk 0:01:07.5]} 44... Kg6 {[%clk 0:00:29.2]} 45. Kf4 {[%clk
0:01:08.7]} 45... Kf7 {[%clk 0:00:29.6]} 46. Kf5 {[%clk 0:01:09.8]} 46... Ke7
{[%clk 0:00:30.3]} 47. Rb6 {[%clk 0:01:10.8]} 47... Kd7 {[%clk 0:00:29.7]} 48.
Rxf6 {[%clk 0:01:10.1]} 48... Kc7 {[%clk 0:00:28.7]} 49. Rf7+ {[%clk 0:01:10.8]}
49... Kd6 {[%clk 0:00:29.8]} 50. Kg6 {[%clk 0:01:11.6]} 50... Rh8 {[%clk
0:00:29.1]} 51. Rh7 {[%clk 0:01:08.8]} 51... Rg8+ {[%clk 0:00:30]} 52. Kxh5
{[%clk 0:01:09]} 52... Kc6 {[%clk 0:00:31.1]} 53. Rg7 {[%clk 0:01:08.2]} 53...
Rh8+ {[%clk 0:00:31.8]} 54. Kg5 {[%clk 0:01:09.4]} 54... Kb6 {[%clk 0:00:33]}
55. h5 {[%clk 0:01:10.7]} 55... Ka7 {[%clk 0:00:34.6]} 56. h6 {[%clk 0:01:12]}
1-0

[Event "*** Titled Tuesday 3|2 Blitz"]
[Site "Chess.com"]
[Date "2016.05.03"]
[Round "3"]
[White "chito89"]
[Black "Aguiar94"]
[Result "1-0"]
[WhiteElo "2634"]
[BlackElo "2390"]
[TimeControl "180+2"]
[EndTime "17:37:57 PDT"]
[Termination "chito89 won by resignation"]

1. e4 {[%clk 0:03:01.9]} 1... c5 {[%clk 0:03:00.5]} 2. Nf3 {[%clk 0:03:01.5]}
2... e6 {[%clk 0:03:01.6]} 3. g3 {[%clk 0:03:01.3]} 3... Nc6 {[%clk 0:03:02.6]}
4. Bg2 {[%clk 0:03:02.5]} 4... Nf6 {[%clk 0:03:03.2]} 5. Qe2 {[%clk 0:03:02.3]}
5... d6 {[%clk 0:03:03.6]} 6. O-O {[%clk 0:03:03.2]} 6... Be7 {[%clk 0:03:04.2]}
7. c3 {[%clk 0:03:03]} 7... e5 {[%clk 0:03:03.8]} 8. Rd1 {[%clk 0:02:59.1]} 8...
O-O {[%clk 0:03:03.8]} 9. d4 {[%clk 0:02:59.5]} 9... cxd4 {[%clk 0:03:02.8]} 10.
cxd4 {[%clk 0:03:00.8]} 10... Bg4 {[%clk 0:02:57.5]} 11. dxe5 {[%clk 0:03:01.4]}
11... Nxe5 {[%clk 0:02:58.1]} 12. Nc3 {[%clk 0:03:02.9]} 12... Rc8 {[%clk
0:02:51]} 13. Bf4 {[%clk 0:03:02.8]} 13... Qa5 {[%clk 0:02:40.9]} 14. h3 {[%clk
0:02:52.6]} 14... Nxf3+ {[%clk 0:02:37.4]} 15. Bxf3 {[%clk 0:02:54]} 15... Bxh3
{[%clk 0:02:38.5]} 16. Bxd6 {[%clk 0:02:55.3]} 16... Bxd6 {[%clk 0:02:39.1]} 17.
Rxd6 {[%clk 0:02:56.9]} 17... Rfe8 {[%clk 0:02:33.5]} 18. Rad1 {[%clk
0:02:52.5]} 18... a6 {[%clk 0:02:29.4]} 19. Qe3 {[%clk 0:02:47.8]} 19... Ng4
{[%clk 0:02:16.8]} 20. Qb6 {[%clk 0:02:22.3]} 20... Qg5 {[%clk 0:02:04.6]} 21.
Qxb7 {[%clk 0:02:02.9]} 21... Ne5 {[%clk 0:02:00.3]} 22. Be2 {[%clk 0:01:57.9]}
22... Rb8 {[%clk 0:01:51.3]} 23. Qxa6 {[%clk 0:01:29.7]} 23... Rxb2 {[%clk
0:01:49.6]} 24. Qa3 {[%clk 0:00:32.2]} 24... Rbb8 {[%clk 0:01:31.6]} 25. R6d5
{[%clk 0:00:12.3]} 25... Be6 {[%clk 0:01:25.4]} 26. Rc5 {[%clk 0:00:09.3]} 26...
Rbc8 {[%clk 0:01:23.8]} 27. Nd5 {[%clk 0:00:09.6]} 27... Rxc5 {[%clk 0:01:14.7]}
28. Qxc5 {[%clk 0:00:11.2]} 28... Bg4 {[%clk 0:01:04.5]} 29. Qc2 {[%clk
0:00:08.3]} 29... Nf3+ {[%clk 0:00:56.6]} 30. Kg2 {[%clk 0:00:09.7]} 30... Qh5
{[%clk 0:00:16.7]} 31. Nf4 {[%clk 0:00:09]} 31... Qe5 {[%clk 0:00:10.2]} 32.
Bxf3 {[%clk 0:00:09.4]} 32... Bc8 {[%clk 0:00:12.1]} 33. Qd3 {[%clk 0:00:09.2]}
33... g6 {[%clk 0:00:12.2]} 34. Qd4 {[%clk 0:00:10.3]} 34... Qa5 {[%clk
0:00:13.2]} 35. Nd5 {[%clk 0:00:11.3]} 35... Qxa2 {[%clk 0:00:13.5]} 36. Nf6+
{[%clk 0:00:12.3]} 1-0